[Event "Chess Festival Groningen 2023 | A"]
[Site "Groningen, Netherlands"]
[Date "2023.12.30"]
[Round "9.2"]
[White "Kazakouski, Valery"]
[Black "Kanov, Nikola"]
[Result "0-1"]
[TimeControl "90min/40moves + 30min + 30sec/move"]
[WhiteElo "2586"]
[BlackElo "2371"]

1. c4 {[%clk 01:30:54]} {[%emt 00:00:05]} c5 {[%clk 01:30:42]} {[%emt
00:00:19]} 2. Nf3 {[%clk 01:31:04]} {[%emt 00:00:20]} Nc6 {[%clk 01:31:03]}
{[%emt 00:00:08]} 3. Nc3 {[%clk 01:31:00]} {[%emt 00:00:34]} g6 {[%clk
01:31:24]} {[%emt 00:00:10]} 4. e3 {[%clk 01:31:22]} {[%emt 00:00:08]} Nf6
{[%clk 01:31:35]} {[%emt 00:00:19]} 5. d4 {[%clk 01:31:39]} {[%emt 00:00:12]}
cxd4 {[%clk 01:31:54]} {[%emt 00:00:11]} 6. exd4 {[%clk 01:32:02]} {[%emt
00:00:07]} d5 {[%clk 01:32:09]} {[%emt 00:00:15]} 7. cxd5 {[%clk 01:31:56]}
{[%emt 00:00:38]} Nxd5 {[%clk 01:32:29]} {[%emt 00:00:10]} 8. Qb3 {[%clk
01:32:15]} {[%emt 00:00:10]} Nxc3 {[%clk 01:32:28]} {[%emt 00:00:31]} 9. Bc4
{[%clk 01:32:14]} {[%emt 00:00:31]} Nd5 {[%clk 01:32:51]} {[%emt 00:00:07]} 10.
Bxd5 {[%clk 01:32:37]} {[%emt 00:00:06]} e6 {[%clk 01:33:14]} {[%emt 00:00:08]}
11. Bxc6+ {[%clk 01:33:00]} {[%emt 00:00:07]} bxc6 {[%clk 01:33:37]} {[%emt
00:00:07]} 12. O-O {[%clk 01:32:52]} {[%emt 00:00:38]} Qd5 {[%clk 01:33:59]}
{[%emt 00:00:09]} 13. Qc2 {[%clk 01:33:15]} {[%emt 00:00:06]} f6 {[%clk
01:32:32]} {[%emt 00:01:58]} 14. Bd2 {[%clk 01:33:31]} {[%emt 00:00:13]} a5
{[%clk 01:29:54]} {[%emt 00:03:08]} 15. a3 {[%clk 01:29:24]} {[%emt 00:04:37]}
Kf7 {[%clk 01:17:50]} {[%emt 00:12:35]} 16. Rac1 {[%clk 01:19:34]} {[%emt
00:10:19]} Bb7 {[%clk 01:15:44]} {[%emt 00:02:36]} 17. b4 {[%clk 01:16:38]}
{[%emt 00:03:26]} a4 {[%clk 00:49:04]} {[%emt 00:27:11]} 18. Rfe1 {[%clk
01:07:55]} {[%emt 00:09:12]} Bd6 {[%clk 00:47:13]} {[%emt 00:02:21]} 19. Rcd1
{[%clk 00:58:03]} {[%emt 00:10:22]} g5 {[%clk 00:41:13]} {[%emt 00:06:30]} 20.
Bc3 {[%clk 00:55:28]} {[%emt 00:03:04]} Be7 {[%clk 00:38:51]} {[%emt 00:02:53]}
21. Re3 {[%clk 00:53:17]} {[%emt 00:02:40]} g4 {[%clk 00:35:49]} {[%emt
00:03:33]} 22. Ne1 {[%clk 00:50:43]} {[%emt 00:03:04]} Bd6 {[%clk 00:34:00]}
{[%emt 00:02:20]} 23. Bb2 {[%clk 00:37:14]} {[%emt 00:13:58]} h5 {[%clk
00:32:12]} {[%emt 00:02:19]} 24. Re5 {[%clk 00:29:40]} {[%emt 00:08:05]} fxe5
{[%clk 00:21:36]} {[%emt 00:11:06]} 25. dxe5 {[%clk 00:29:47]} {[%emt
00:00:23]} Qxd1 {[%clk 00:17:05]} {[%emt 00:05:01]} 26. Qxd1 {[%clk 00:30:06]}
{[%emt 00:00:11]} Be7 {[%clk 00:17:33]} {[%emt 00:00:02]} 27. h3 {[%clk
00:28:32]} {[%emt 00:02:05]} c5 {[%clk 00:16:52]} {[%emt 00:01:11]} 28. bxc5
{[%clk 00:19:49]} {[%emt 00:09:12]} gxh3 {[%clk 00:17:03]} {[%emt 00:00:19]} 29.
Bc1 {[%clk 00:15:31]} {[%emt 00:04:48]} Bc6 {[%clk 00:13:12]} {[%emt 00:04:21]}
30. g3 {[%clk 00:12:16]} {[%emt 00:03:44]} h4 {[%clk 00:12:41]} {[%emt
00:01:02]} 31. g4 {[%clk 00:12:38]} {[%emt 00:00:07]} Rab8 {[%clk 00:10:45]}
{[%emt 00:02:27]} 32. Kh2 {[%clk 00:10:58]} {[%emt 00:02:10]} Rb3 {[%clk
00:09:10]} {[%emt 00:02:06]} 33. Qe2 {[%clk 00:07:31]} {[%emt 00:03:56]} Rg8
{[%clk 00:06:48]} {[%emt 00:02:53]} 34. g5 {[%clk 00:05:50]} {[%emt 00:02:10]}
Rg6 {[%clk 00:05:54]} {[%emt 00:01:24]} 35. Qh5 {[%clk 00:05:16]} {[%emt
00:01:03]} Kg7 {[%clk 00:06:03]} {[%emt 00:00:22]} 36. Qxh4 {[%clk 00:05:00]}
{[%emt 00:00:47]} Rb1 {[%clk 00:05:10]} {[%emt 00:01:22]} 37. Nd3 {[%clk
00:01:50]} {[%emt 00:03:40]} Rxc1 {[%clk 00:03:42]} {[%emt 00:01:59]} 38. Nxc1
{[%clk 00:01:21]} {[%emt 00:00:59]} Bxg5 {[%clk 00:04:06]} {[%emt 00:00:06]} 39.
Qc4 {[%clk 00:01:07]} {[%emt 00:00:44]} Bd5 {[%clk 00:04:30]} {[%emt 00:00:06]}
40. Qc3 {[%clk 00:00:36]} {[%emt 00:01:00]} Bf4+ {[%clk 00:03:32]} {[%emt
00:01:28]} 41. Kxh3 {[%clk 00:30:04]} {[%emt 00:01:03]} Be4 {[%clk 00:30:44]}
{[%emt 00:03:18]} 42. Kh4 {[%clk 00:25:02]} {[%emt 00:05:32]} Bf5 {[%clk
00:28:36]} {[%emt 00:02:37]} 0-1

[Event "Chess Festival Groningen 2023 | A"]
[Site "Groningen, Netherlands"]
[Date "2023.12.30"]
[Round "9.3"]
[White "Tiviakov, Sergei"]
[Black "Reinderman, Dimitri"]
[Result "1/2-1/2"]
[TimeControl "90min/40moves + 30min + 30sec/move"]
[WhiteElo "2536"]
[BlackElo "2580"]

1. e4 {[%clk 01:30:56]} {[%emt 00:00:03]} c5 {[%clk 01:30:56]} {[%emt
00:00:05]} 2. c3 {[%clk 01:31:21]} {[%emt 00:00:05]} d5 {[%clk 01:31:20]}
{[%emt 00:00:06]} 3. exd5 {[%clk 01:31:45]} {[%emt 00:00:06]} Qxd5 {[%clk
01:31:42]} {[%emt 00:00:09]} 4. d4 {[%clk 01:32:12]} {[%emt 00:00:03]} cxd4
{[%clk 01:31:56]} {[%emt 00:00:16]} 5. cxd4 {[%clk 01:32:33]} {[%emt 00:00:08]}
Nc6 {[%clk 01:32:18]} {[%emt 00:00:09]} 6. Nf3 {[%clk 01:32:56]} {[%emt
00:00:07]} e5 {[%clk 01:32:38]} {[%emt 00:00:10]} 7. Nc3 {[%clk 01:33:12]}
{[%emt 00:00:14]} Bb4 {[%clk 01:32:58]} {[%emt 00:00:10]} 8. Bd2 {[%clk
01:33:36]} {[%emt 00:00:06]} Bxc3 {[%clk 01:33:13]} {[%emt 00:00:15]} 9. Bxc3
{[%clk 01:34:03]} {[%emt 00:00:03]} e4 {[%clk 01:33:30]} {[%emt 00:00:13]} 10.
Ne5 {[%clk 01:34:26]} {[%emt 00:00:07]} Nxe5 {[%clk 01:33:46]} {[%emt
00:00:15]} 11. dxe5 {[%clk 01:34:51]} {[%emt 00:00:04]} Ne7 {[%clk 01:34:08]}
{[%emt 00:00:08]} 12. Be2 {[%clk 01:31:12]} {[%emt 00:04:09]} O-O {[%clk
01:33:37]} {[%emt 00:01:02]} 13. O-O {[%clk 01:31:36]} {[%emt 00:00:05]} Re8
{[%clk 01:33:08]} {[%emt 00:00:59]} 14. Qa4 {[%clk 01:01:04]} {[%emt 00:31:02]}
Bd7 {[%clk 01:32:45]} {[%emt 00:00:54]} 15. Qa3 {[%clk 00:58:23]} {[%emt
00:03:11]} Bc6 {[%clk 01:10:46]} {[%emt 00:22:29]} 16. Rad1 {[%clk 00:53:21]}
{[%emt 00:05:31]} 1/2-1/2

[Event "Chess Festival Groningen 2023 | A"]
[Site "Groningen, Netherlands"]
[Date "2023.12.30"]
[Round "9.4"]
[White "De Boer, Eelke"]
[Black "Kobo, Ori"]
[Result "0-1"]
[TimeControl "90min/40moves + 30min + 30sec/move"]
[WhiteElo "2346"]
[BlackElo "2541"]

1. e4 {[%clk 01:30:57]} {[%emt 00:00:02]} e5 {[%clk 01:30:46]} {[%emt
00:00:15]} 2. Nf3 {[%clk 01:31:21]} {[%emt 00:00:06]} Nc6 {[%clk 01:30:57]}
{[%emt 00:00:19]} 3. Bc4 {[%clk 01:31:44]} {[%emt 00:00:07]} Bc5 {[%clk
01:31:07]} {[%emt 00:00:19]} 4. c3 {[%clk 01:32:06]} {[%emt 00:00:09]} Nf6
{[%clk 01:31:18]} {[%emt 00:00:18]} 5. d4 {[%clk 01:32:26]} {[%emt 00:00:10]}
exd4 {[%clk 01:31:35]} {[%emt 00:00:13]} 6. e5 {[%clk 01:32:50]} {[%emt
00:00:06]} d5 {[%clk 01:31:37]} {[%emt 00:00:28]} 7. Bb5 {[%clk 01:33:08]}
{[%emt 00:00:12]} Ne4 {[%clk 01:31:47]} {[%emt 00:00:19]} 8. cxd4 {[%clk
01:33:31]} {[%emt 00:00:07]} Bb6 {[%clk 01:31:55]} {[%emt 00:00:22]} 9. Nc3
{[%clk 01:33:46]} {[%emt 00:00:16]} O-O {[%clk 01:32:04]} {[%emt 00:00:19]} 10.
Be3 {[%clk 01:33:58]} {[%emt 00:00:19]} Bg4 {[%clk 01:32:18]} {[%emt 00:00:16]}
11. h3 {[%clk 01:34:04]} {[%emt 00:00:25]} Bh5 {[%clk 01:32:37]} {[%emt
00:00:11]} 12. Qc2 {[%clk 01:34:23]} {[%emt 00:00:11]} Nb4 {[%clk 01:32:55]}
{[%emt 00:00:12]} 13. Qb3 {[%clk 01:25:15]} {[%emt 00:09:38]} Ba5 {[%clk
01:33:12]} {[%emt 00:00:13]} 14. O-O {[%clk 01:14:46]} {[%emt 00:10:59]} c5
{[%clk 01:26:22]} {[%emt 00:07:21]} 15. dxc5 {[%clk 01:08:17]} {[%emt
00:06:59]} Bxf3 {[%clk 01:22:45]} {[%emt 00:04:07]} 16. gxf3 {[%clk 01:08:41]}
{[%emt 00:00:07]} Ng5 {[%clk 01:22:25]} {[%emt 00:00:49]} 17. Kg2 {[%clk
01:06:53]} {[%emt 00:02:18]} d4 {[%clk 01:11:17]} {[%emt 00:11:38]} 18. Rad1
{[%clk 01:03:12]} {[%emt 00:04:11]} Ne6 {[%clk 01:08:21]} {[%emt 00:03:25]} 19.
a3 {[%clk 00:55:00]} {[%emt 00:08:42]} Nxc5 {[%clk 00:46:20]} {[%emt 00:22:31]}
20. Qc4 {[%clk 00:53:27]} {[%emt 00:02:03]} Nc2 {[%clk 00:46:24]} {[%emt
00:00:26]} 21. Bc1 {[%clk 00:35:23]} {[%emt 00:18:35]} Rc8 {[%clk 00:35:34]}
{[%emt 00:11:20]} 22. Ne2 {[%clk 00:34:07]} {[%emt 00:01:46]} Ne1+ {[%clk
00:28:09]} {[%emt 00:07:55]} 23. Rfxe1 {[%clk 00:17:39]} {[%emt 00:16:59]} Bxe1
{[%clk 00:28:23]} {[%emt 00:00:14]} 24. Nxd4 {[%clk 00:17:49]} {[%emt
00:00:22]} Ne6 {[%clk 00:17:51]} {[%emt 00:11:01]} 25. Qa4 {[%clk 00:13:31]}
{[%emt 00:04:48]} Rxc1 {[%clk 00:17:08]} {[%emt 00:01:13]} 26. Rxc1 {[%clk
00:08:21]} {[%emt 00:05:40]} Qg5+ {[%clk 00:16:37]} {[%emt 00:01:00]} 27. Kf1
{[%clk 00:08:05]} {[%emt 00:00:46]} Qxc1 {[%clk 00:16:39]} {[%emt 00:00:27]} 28.
Nb3 {[%clk 00:07:35]} {[%emt 00:01:01]} Qb1 {[%clk 00:14:23]} {[%emt 00:02:46]}
0-1

[Event "Chess Festival Groningen 2023 | A"]
[Site "Groningen, Netherlands"]
[Date "2023.12.30"]
[Round "9.5"]
[White "Bulmaga, Irina"]
[Black "Jin, Yueheng"]
[Result "0-1"]
[TimeControl "90min/40moves + 30min + 30sec/move"]
[WhiteElo "2439"]
[BlackElo "2398"]

1. e4 {[%clk 01:30:56]} {[%emt 00:00:03]} c5 {[%clk 01:30:57]} {[%emt
00:00:04]} 2. Nf3 {[%clk 01:31:17]} {[%emt 00:00:08]} e6 {[%clk 01:31:25]}
{[%emt 00:00:03]} 3. d4 {[%clk 01:31:34]} {[%emt 00:00:12]} cxd4 {[%clk
01:31:52]} {[%emt 00:00:04]} 4. Nxd4 {[%clk 01:31:54]} {[%emt 00:00:09]} Nf6
{[%clk 01:32:20]} {[%emt 00:00:02]} 5. Bd3 {[%clk 01:32:13]} {[%emt 00:00:11]}
Nc6 {[%clk 01:32:00]} {[%emt 00:00:51]} 6. Nxc6 {[%clk 01:32:32]} {[%emt
00:00:11]} bxc6 {[%clk 01:32:22]} {[%emt 00:00:09]} 7. Bf4 {[%clk 01:32:25]}
{[%emt 00:00:37]} d5 {[%clk 01:32:05]} {[%emt 00:00:47]} 8. Nd2 {[%clk
01:32:34]} {[%emt 00:00:20]} Qb6 {[%clk 01:26:08]} {[%emt 00:06:28]} 9. O-O
{[%clk 01:32:17]} {[%emt 00:00:47]} Be7 {[%clk 01:23:52]} {[%emt 00:02:46]} 10.
c4 {[%clk 01:21:42]} {[%emt 00:11:04]} O-O {[%clk 01:23:02]} {[%emt 00:01:20]}
11. e5 {[%clk 01:20:45]} {[%emt 00:01:27]} Nd7 {[%clk 01:23:12]} {[%emt
00:00:21]} 12. Qh5 {[%clk 01:06:28]} {[%emt 00:14:46]} g6 {[%clk 01:23:23]}
{[%emt 00:00:20]} 13. Qe2 {[%clk 01:06:31]} {[%emt 00:00:27]} Qxb2 {[%clk
01:11:33]} {[%emt 00:12:21]} 14. Rab1 {[%clk 00:57:17]} {[%emt 00:09:44]} Qa3
{[%clk 00:58:33]} {[%emt 00:13:30]} 15. Rb3 {[%clk 00:54:29]} {[%emt 00:03:18]}
Qa4 {[%clk 00:53:59]} {[%emt 00:05:04]} 16. Bb1 {[%clk 00:48:36]} {[%emt
00:06:23]} Ba6 {[%clk 00:54:00]} {[%emt 00:00:30]} 17. Rg3 {[%clk 00:41:37]}
{[%emt 00:07:28]} Bxc4 {[%clk 00:46:12]} {[%emt 00:08:18]} 18. Qh5 {[%clk
00:24:52]} {[%emt 00:17:14]} Bxf1 {[%clk 00:43:01]} {[%emt 00:03:42]} 19. Bh6
{[%clk 00:04:53]} {[%emt 00:20:27]} Be2 {[%clk 00:40:14]} {[%emt 00:03:18]} 20.
Qxe2 {[%clk 00:03:40]} {[%emt 00:01:43]} Rfb8 {[%clk 00:40:02]} {[%emt
00:00:42]} 21. h4 {[%clk 00:03:23]} {[%emt 00:00:47]} Qxh4 {[%clk 00:39:20]}
{[%emt 00:01:13]} 22. Rh3 {[%clk 00:01:46]} {[%emt 00:02:06]} Qd4 {[%clk
00:39:30]} {[%emt 00:00:20]} 23. Bc2 {[%clk 00:01:43]} {[%emt 00:00:33]} Rb2
{[%clk 00:37:39]} {[%emt 00:02:21]} 24. Bb3 {[%clk 00:00:40]} {[%emt 00:01:33]}
Bb4 {[%clk 00:32:55]} {[%emt 00:05:15]} 25. Rd3 {[%clk 00:00:51]} {[%emt
00:00:19]} Qxe5 {[%clk 00:33:14]} {[%emt 00:00:11]} 26. Qg4 {[%clk 00:00:41]}
{[%emt 00:00:40]} Bxd2 {[%clk 00:32:26]} {[%emt 00:01:19]} 27. Rxd2 {[%clk
00:00:33]} {[%emt 00:00:39]} Qe1+ {[%clk 00:32:36]} {[%emt 00:00:20]} 28. Kh2
{[%clk 00:01:01]} {[%emt 00:00:02]} Rxd2 {[%clk 00:33:01]} {[%emt 00:00:05]} 29.
Qb4 {[%clk 00:01:15]} {[%emt 00:00:16]} Rd1 {[%clk 00:32:30]} {[%emt 00:01:01]}
30. Qb7 {[%clk 00:01:41]} {[%emt 00:00:04]} Qe5+ {[%clk 00:32:42]} {[%emt
00:00:18]} 31. f4 {[%clk 00:01:46]} {[%emt 00:00:24]} Qh5+ {[%clk 00:33:08]}
{[%emt 00:00:05]} 32. Kg3 {[%clk 00:02:13]} {[%emt 00:00:03]} Rd3+ {[%clk
00:33:29]} {[%emt 00:00:09]} 33. Kf2 {[%clk 00:02:40]} {[%emt 00:00:03]} Qxh6
{[%clk 00:33:45]} {[%emt 00:00:13]} 34. Qxa8+ {[%clk 00:03:03]} {[%emt
00:00:08]} Nf8 {[%clk 00:34:09]} {[%emt 00:00:06]} 0-1

[Event "Chess Festival Groningen 2023 | A"]
[Site "Groningen, Netherlands"]
[Date "2023.12.30"]
[Round "9.6"]
[White "Maatman, Nick"]
[Black "Nevednichy, Vladislav"]
[Result "1-0"]
[TimeControl "90min/40moves + 30min + 30sec/move"]
[WhiteElo "2371"]
[BlackElo "2452"]

1. e4 {[%clk 01:28:26]} {[%emt 00:02:32]} c5 {[%clk 01:30:38]} {[%emt
00:00:23]} 2. Nf3 {[%clk 01:28:40]} {[%emt 00:00:16]} Nc6 {[%clk 01:30:59]}
{[%emt 00:00:09]} 3. d4 {[%clk 01:29:02]} {[%emt 00:00:08]} cxd4 {[%clk
01:31:25]} {[%emt 00:00:04]} 4. Nxd4 {[%clk 01:29:29]} {[%emt 00:00:03]} Qb6
{[%clk 01:31:32]} {[%emt 00:00:24]} 5. Nb3 {[%clk 01:29:07]} {[%emt 00:00:51]}
Nf6 {[%clk 01:31:55]} {[%emt 00:00:07]} 6. Nc3 {[%clk 01:28:11]} {[%emt
00:01:26]} e6 {[%clk 01:32:20]} {[%emt 00:00:05]} 7. Bd3 {[%clk 01:14:55]}
{[%emt 00:13:46]} Be7 {[%clk 01:26:09]} {[%emt 00:06:41]} 8. O-O {[%clk
01:13:17]} {[%emt 00:02:08]} d6 {[%clk 01:24:12]} {[%emt 00:02:27]} 9. a4
{[%clk 01:11:39]} {[%emt 00:02:09]} O-O {[%clk 01:17:32]} {[%emt 00:07:10]} 10.
a5 {[%clk 01:11:53]} {[%emt 00:00:16]} Qc7 {[%clk 01:17:51]} {[%emt 00:00:11]}
11. Qe2 {[%clk 01:03:01]} {[%emt 00:09:22]} Bd7 {[%clk 01:07:55]} {[%emt
00:10:26]} 12. f4 {[%clk 00:49:41]} {[%emt 00:13:50]} Rfe8 {[%clk 00:46:22]}
{[%emt 00:22:03]} 13. Kh1 {[%clk 00:47:09]} {[%emt 00:03:02]} a6 {[%clk
00:39:10]} {[%emt 00:07:42]} 14. Be3 {[%clk 00:44:57]} {[%emt 00:02:42]} Nb4
{[%clk 00:37:26]} {[%emt 00:02:14]} 15. Na4 {[%clk 00:39:29]} {[%emt 00:05:58]}
Bc6 {[%clk 00:35:11]} {[%emt 00:02:45]} 16. Nb6 {[%clk 00:36:57]} {[%emt
00:03:02]} Rad8 {[%clk 00:34:51]} {[%emt 00:00:49]} 17. Bg1 {[%clk 00:34:52]}
{[%emt 00:02:35]} Nd7 {[%clk 00:19:49]} {[%emt 00:15:32]} 18. Nd4 {[%clk
00:29:03]} {[%emt 00:06:19]} Bf6 {[%clk 00:18:59]} {[%emt 00:01:20]} 19. Nxc6
{[%clk 00:28:42]} {[%emt 00:00:52]} bxc6 {[%clk 00:15:09]} {[%emt 00:04:20]} 20.
c3 {[%clk 00:23:36]} {[%emt 00:05:36]} Nxd3 {[%clk 00:15:18]} {[%emt 00:00:21]}
21. Qxd3 {[%clk 00:24:04]} {[%emt 00:00:01]} Nb8 {[%clk 00:14:15]} {[%emt
00:01:33]} 22. Rad1 {[%clk 00:23:03]} {[%emt 00:01:30]} Qb7 {[%clk 00:12:56]}
{[%emt 00:01:50]} 23. b4 {[%clk 00:18:50]} {[%emt 00:04:43]} Be7 {[%clk
00:13:04]} {[%emt 00:00:22]} 24. Qb1 {[%clk 00:11:59]} {[%emt 00:07:21]} c5
{[%clk 00:10:44]} {[%emt 00:02:50]} 25. bxc5 {[%clk 00:10:12]} {[%emt
00:02:17]} dxc5 {[%clk 00:06:23]} {[%emt 00:04:51]} 26. Nd5 {[%clk 00:10:16]}
{[%emt 00:00:26]} Rd7 {[%clk 00:03:59]} {[%emt 00:02:54]} 27. Nxe7+ {[%clk
00:09:12]} {[%emt 00:01:33]} Rdxe7 {[%clk 00:04:28]} {[%emt 00:00:02]} 28. Bxc5
{[%clk 00:09:31]} {[%emt 00:00:10]} Rd7 {[%clk 00:04:14]} {[%emt 00:00:44]} 29.
Qxb7 {[%clk 00:09:29]} {[%emt 00:00:32]} Rxb7 {[%clk 00:04:43]} {[%emt
00:00:01]} 30. Rd6 {[%clk 00:09:28]} {[%emt 00:00:31]} Rc7 {[%clk 00:04:29]}
{[%emt 00:00:43]} 31. Bd4 {[%clk 00:08:58]} {[%emt 00:01:00]} h5 {[%clk
00:04:03]} {[%emt 00:00:56]} 32. Rb1 {[%clk 00:08:12]} {[%emt 00:01:16]} f6
{[%clk 00:03:01]} {[%emt 00:01:33]} 33. e5 {[%clk 00:07:58]} {[%emt 00:00:43]}
Nc6 {[%clk 00:02:58]} {[%emt 00:00:34]} 34. exf6 {[%clk 00:07:12]} {[%emt
00:01:16]} Nxd4 {[%clk 00:02:44]} {[%emt 00:00:45]} 35. cxd4 {[%clk 00:07:39]}
{[%emt 00:00:02]} gxf6 {[%clk 00:03:04]} {[%emt 00:00:09]} 36. Rxa6 {[%clk
00:07:53]} {[%emt 00:00:16]} Kf7 {[%clk 00:02:46]} {[%emt 00:00:49]} 37. Rab6
{[%clk 00:06:57]} {[%emt 00:01:26]} Rc2 {[%clk 00:01:22]} {[%emt 00:01:53]} 38.
R6b2 {[%clk 00:06:47]} {[%emt 00:00:38]} Rc6 {[%clk 00:01:01]} {[%emt
00:00:53]} 39. Ra2 {[%clk 00:05:41]} {[%emt 00:01:36]} Ra8 {[%clk 00:01:12]}
{[%emt 00:00:19]} 40. Kg1 {[%clk 00:04:43]} {[%emt 00:01:28]} Kg6 {[%clk
00:01:25]} {[%emt 00:00:17]} 41. Kf2 {[%clk 00:02:45]} {[%emt 00:02:27]} Kf5
{[%clk 00:01:46]} {[%emt 00:00:09]} 42. Rb5+ {[%clk 00:29:52]} {[%emt
00:03:23]} Kxf4 {[%clk 00:30:59]} {[%emt 00:01:18]} 43. d5 {[%clk 00:27:45]}
{[%emt 00:02:37]} exd5 {[%clk 00:30:48]} {[%emt 00:00:41]} 44. Rxd5 {[%clk
00:27:59]} {[%emt 00:00:15]} f5 {[%clk 00:30:36]} {[%emt 00:00:42]} 45. h4
{[%clk 00:19:48]} {[%emt 00:08:41]} Kg4 {[%clk 00:29:29]} {[%emt 00:01:37]} 46.
Rd4+ {[%clk 00:09:02]} {[%emt 00:11:16]} f4 {[%clk 00:29:29]} {[%emt 00:00:30]}
47. g3 {[%clk 00:09:28]} {[%emt 00:00:04]} Kh3 {[%clk 00:21:40]} {[%emt
00:08:20]} 48. Rxf4 {[%clk 00:09:04]} {[%emt 00:00:53]} Rc3 {[%clk 00:17:09]}
{[%emt 00:05:01]} 49. Rf3 {[%clk 00:07:01]} {[%emt 00:02:33]} Rxf3+ {[%clk
00:11:22]} {[%emt 00:06:17]} 50. Kxf3 {[%clk 00:07:29]} {[%emt 00:00:02]} Rf8+
{[%clk 00:09:14]} {[%emt 00:02:38]} 51. Ke2 {[%clk 00:06:40]} {[%emt 00:01:18]}
Re8+ {[%clk 00:09:18]} {[%emt 00:00:27]} 52. Kd1 {[%clk 00:06:00]} {[%emt
00:01:10]} Kxg3 {[%clk 00:07:20]} {[%emt 00:02:29]} 53. Ra4 {[%clk 00:06:25]}
{[%emt 00:00:05]} Rd8+ {[%clk 00:07:29]} {[%emt 00:00:21]} 54. Kc2 {[%clk
00:06:30]} {[%emt 00:00:24]} Rc8+ {[%clk 00:07:47]} {[%emt 00:00:12]} 55. Kb3
{[%clk 00:06:18]} {[%emt 00:00:42]} Ra8 {[%clk 00:06:56]} {[%emt 00:01:21]} 56.
Kc3 {[%clk 00:05:42]} {[%emt 00:01:06]} Kh3 {[%clk 00:06:34]} {[%emt 00:00:52]}
57. Kd3 {[%clk 00:02:58]} {[%emt 00:03:15]} Rd8+ {[%clk 00:05:09]} {[%emt
00:01:54]} 58. Ke3 {[%clk 00:03:22]} {[%emt 00:00:06]} Re8+ {[%clk 00:03:48]}
{[%emt 00:01:51]} 59. Kf3 {[%clk 00:03:12]} {[%emt 00:00:40]} Rf8+ {[%clk
00:03:56]} {[%emt 00:00:22]} 60. Ke2 {[%clk 00:03:32]} {[%emt 00:00:10]} Re8+
{[%clk 00:04:20]} {[%emt 00:00:05]} 61. Kd2 {[%clk 00:03:58]} {[%emt 00:00:05]}
Rd8+ {[%clk 00:04:45]} {[%emt 00:00:05]} 62. Kc2 {[%clk 00:04:19]} {[%emt
00:00:09]} Rc8+ {[%clk 00:05:08]} {[%emt 00:00:08]} 63. Kb2 {[%clk 00:04:32]}
{[%emt 00:00:15]} Rb8+ {[%clk 00:05:12]} {[%emt 00:00:27]} 64. Kc3 {[%clk
00:04:57]} {[%emt 00:00:05]} Kg3 {[%clk 00:05:30]} {[%emt 00:00:13]} 65. Kd3
{[%clk 00:03:30]} {[%emt 00:01:57]} Rd8+ {[%clk 00:05:54]} {[%emt 00:00:06]} 66.
Ke3 {[%clk 00:03:43]} {[%emt 00:00:15]} Re8+ {[%clk 00:06:04]} {[%emt
00:00:21]} 67. Kd2 {[%clk 00:04:08]} {[%emt 00:00:05]} Rd8+ {[%clk 00:06:30]}
{[%emt 00:00:04]} 68. Kc3 {[%clk 00:04:29]} {[%emt 00:00:09]} Ra8 {[%clk
00:06:39]} {[%emt 00:00:19]} 69. Kb3 {[%clk 00:03:39]} {[%emt 00:01:22]} Kh3
{[%clk 00:07:00]} {[%emt 00:00:09]} 70. a6 {[%clk 00:03:16]} {[%emt 00:00:53]}
Rb8+ {[%clk 00:07:06]} {[%emt 00:00:23]} 71. Kc3 {[%clk 00:02:37]} {[%emt
00:01:09]} Rc8+ {[%clk 00:07:25]} {[%emt 00:00:13]} 72. Kd3 {[%clk 00:03:02]}
{[%emt 00:00:04]} Rd8+ {[%clk 00:07:41]} {[%emt 00:00:14]} 73. Ke3 {[%clk
00:03:16]} {[%emt 00:00:16]} Re8+ {[%clk 00:05:56]} {[%emt 00:02:16]} 74. Kf4
{[%clk 00:02:47]} {[%emt 00:00:57]} Kxh4 {[%clk 00:06:21]} {[%emt 00:00:06]} 75.
a7 {[%clk 00:03:14]} {[%emt 00:00:03]} Ra8 {[%clk 00:06:18]} {[%emt 00:00:33]}
76. Kf5+ {[%clk 00:02:21]} {[%emt 00:01:23]} Kg3 {[%clk 00:06:46]} {[%emt
00:00:02]} 77. Kg5 {[%clk 00:02:45]} {[%emt 00:00:05]} h4 {[%clk 00:05:55]}
{[%emt 00:01:21]} 78. Ra3+ {[%clk 00:02:53]} {[%emt 00:00:23]} Kf2 {[%clk
00:06:22]} {[%emt 00:00:03]} 79. Kxh4 {[%clk 00:03:19]} {[%emt 00:00:04]} Ke2
{[%clk 00:06:50]} {[%emt 00:00:01]} 80. Kg5 {[%clk 00:03:38]} {[%emt 00:00:11]}
1-0

[Event "Chess Festival Groningen 2023 | A"]
[Site "Groningen, Netherlands"]
[Date "2023.12.30"]
[Round "9.7"]
[White "Stremavicius, Pijus"]
[Black "Lahaye, Rick"]
[Result "1-0"]
[TimeControl "90min/40moves + 30min + 30sec/move"]
[WhiteElo "2367"]
[BlackElo "2439"]

1. d4 {[%clk 01:30:52]} {[%emt 00:00:08]} d5 {[%clk 01:29:49]} {[%emt
00:01:11]} 2. Nf3 {[%clk 01:31:09]} {[%emt 00:00:13]} Nf6 {[%clk 01:29:34]}
{[%emt 00:00:45]} 3. Bf4 {[%clk 01:31:32]} {[%emt 00:00:06]} c5 {[%clk
01:27:28]} {[%emt 00:02:36]} 4. e3 {[%clk 01:31:57]} {[%emt 00:00:05]} Nc6
{[%clk 01:27:08]} {[%emt 00:00:50]} 5. Nbd2 {[%clk 01:32:24]} {[%emt 00:00:04]}
e6 {[%clk 01:22:35]} {[%emt 00:05:03]} 6. c3 {[%clk 01:32:24]} {[%emt
00:00:30]} Bd6 {[%clk 01:22:45]} {[%emt 00:00:20]} 7. Bg3 {[%clk 01:32:20]}
{[%emt 00:00:34]} O-O {[%clk 01:22:37]} {[%emt 00:00:38]} 8. Bd3 {[%clk
01:32:39]} {[%emt 00:00:11]} b6 {[%clk 01:22:38]} {[%emt 00:00:29]} 9. e4
{[%clk 01:33:02]} {[%emt 00:00:06]} dxe4 {[%clk 01:20:40]} {[%emt 00:02:28]} 10.
Nxe4 {[%clk 01:33:28]} {[%emt 00:00:04]} Nxe4 {[%clk 01:20:19]} {[%emt
00:00:52]} 11. Bxe4 {[%clk 01:33:55]} {[%emt 00:00:02]} Bb7 {[%clk 01:20:43]}
{[%emt 00:00:06]} 12. Qa4 {[%clk 01:34:13]} {[%emt 00:00:12]} Rc8 {[%clk
01:04:53]} {[%emt 00:16:20]} 13. dxc5 {[%clk 01:34:17]} {[%emt 00:00:26]} Bxc5
{[%clk 01:04:38]} {[%emt 00:00:46]} 14. Rd1 {[%clk 01:34:33]} {[%emt 00:00:14]}
Qe8 {[%clk 01:04:39]} {[%emt 00:00:29]} 15. Bxh7+ {[%clk 01:34:20]} {[%emt
00:00:42]} 1-0